bitfinex/quotes_ETHUSD_20250916
["timestamp","ask_amount","ask_price","bid_price","bid_amount"]
[1758020043829,15.58446543,4514.0,4513.9,0.0018]
[1758020047347,14.66246543,4514.0,4513.9,0.0018]
[1758020048260,14.86900059,4514.0,4513.9,0.0018]
[1758020048464,15.33290059,4514.0,4513.9,0.0018]
[1758020049027,14.86900059,4514.0,4513.9,0.0018]
[1758020050143,15.33290059,4514.0,4513.9,0.0018]
[1758020050543,15.79100059,4514.0,4513.9,0.0018]
[1758020052345,15.91500305,4514.0,4513.9,0.0018]
[1758020053567,2.21542824,4513.8,4513.3,0.001]
[1758020053778,2.21572276,4513.2,4513.1,0.01]
[1758020053933,5.21577186,4513.1,4512.3,0.001]
[1758020054130,10.36620557,4512.4,4512.3,0.001]
[1758020054364,14.96194785,4512.4,4512.3,0.001]
[1758020054566,15.77687925,4512.4,4512.3,0.001]
[1758020054766,15.4956973,4512.4,4512.3,0.001]
[1758020055458,15.5845466,4512.4,4512.3,0.001]
[1758020055961,15.58442256,4512.4,4512.3,0.001]
[1758020057671,15.79099411,4512.4,4512.3,0.001]
[1758020057892,15.79099623,4512.4,4512.3,0.001]
[1758020058285,16.0721781,4512.4,4512.3,0.001]
[1758020058473,15.79099623,4512.4,4512.3,0.001]
[1758020058691,3.1104,4512.3,4511.8,0.001]
[1758020058847,8.15008998,4511.9,4511.8,0.001]
[1758020059050,12.35826066,4511.9,4511.8,0.001]
[1758020059274,13.28026066,4511.9,4511.8,0.001]
[1758020059475,15.49662183,4511.9,4511.8,0.001]
[1758020059881,15.70319553,4511.9,4511.8,0.001]
[1758020060059,16.18309553,4511.9,4511.8,0.001]
[1758020060266,11.05292183,4511.9,4511.8,0.001]
[1758020060472,14.76592183,4511.9,4511.8,0.4893]
[1758020060794,14.55935115,4511.9,4511.8,0.4893]
[1758020062143,14.76584502,4511.9,4511.8,0.4893]
[1758020062342,14.76584502,4511.9,4511.8,0.4583]
[1758020062886,14.76584502,4511.9,4511.8,0.001]
[1758020064082,14.76584502,4511.9,4511.8,0.0018]
[1758020064444,14.76584502,4511.9,4511.8,0.4591]
[1758020064661,15.51004502,4511.9,4511.8,0.0018]
[1758020064861,16.00364502,4511.9,4511.8,0.0018]
[1758020065474,12.29064502,4511.9,4511.8,0.0018]
[1758020065683,16.00364502,4511.9,4511.8,0.0018]
[1758020066501,16.00359567,4511.9,4511.8,0.0018]
[1758020067206,15.07799567,4511.9,4511.8,0.0018]
[1758020067407,15.79715115,4511.9,4511.8,0.0018]
[1758020067706,16.20998025,4511.9,4511.8,0.0018]
[1758020068506,16.80934321,4511.9,4511.8,0.0018]
[1758020071504,2.21665595,4511.3,4511.2,0.45572636]
[1758020071696,8.92965595,4511.3,4511.2,0.45572636]
[1758020072532,9.38538231,4511.3,4511.2,0.45572636]
[1758020073027,9.38538231,4511.3,4511.2,0.48672636]
[1758020073330,7.16872636,4511.3,4511.2,0.48672636]
[1758020073727,3.45572636,4511.3,4511.2,0.48672636]
[1758020073929,7.16872636,4511.3,4511.2,0.50612636]
[1758020074225,3.0,4511.3,4511.2,0.50692636]
[1758020074732,3.713,4511.6,4511.2,0.50692636]
[1758020075226,3.0,4511.6,4511.3,0.0194]
[1758020075429,5.15008998,4512.5,4511.5,2.24753389]
[1758020075602,2.21629897,4512.1,4511.6,0.4573]
[1758020075787,3.66637272,4512.0,4511.6,0.4573]
[1758020076098,0.66637272,4512.0,4511.7,0.4573]
[1758020076290,2.88268672,4512.0,4511.2,2.21749871]
[1758020076490,3.0,4511.9,4511.3,0.4573]
[1758020076731,2.2164453,4511.8,4511.3,0.4573]
[1758020077020,5.15008998,4511.6,4511.3,0.4573]
[1758020077224,5.15008998,4511.6,4511.4,0.4573]
[1758020077427,5.15008998,4511.6,4511.5,0.4573]
[1758020077629,5.15008998,4511.6,4511.5,0.4883]
[1758020078401,0.4573,4511.7,4511.5,0.4883]
[1758020078722,0.4573,4511.7,4511.6,0.4573]
[1758020078916,2.67375942,4511.7,4511.6,0.4573]
[1758020079319,0.7695,4511.7,4511.2,0.4581]
[1758020079665,2.21650964,4511.6,4511.3,0.4573]
[1758020079946,2.21570964,4511.6,4511.4,0.4573]
[1758020080113,2.21570964,4511.6,4511.5,0.4573]
[1758020080114,0.4581,4511.6,4511.5,0.4573]
[1758020080514,0.4581,4511.6,4511.2,0.0008]
[1758020080749,0.4581,4511.6,4511.3,0.4573]
[1758020081551,0.4581,4511.6,4511.5,0.031]
[1758020081713,0.4581,4511.6,4511.5,0.4883]
[1758020082936,0.1104,4511.5,4511.2,0.4581]
[1758020083135,2.21651135,4511.6,4511.3,0.4573]
[1758020083410,0.1104,4511.3,4511.2,0.0008]
[1758020083718,0.1104,4511.3,4511.2,0.4581]
[1758020084217,0.1104,4511.3,4511.2,0.4891]
[1758020085335,0.1104,4511.3,4511.2,0.0008]
[1758020085531,0.1104,4511.3,4511.2,0.4581]
[1758020085849,0.1104,4511.3,4511.2,0.4891]
[1758020086868,0.1104,4511.3,4511.2,2.70580508]
[1758020087182,0.1104,4511.9,4511.6,2.21646924]
[1758020087384,0.1104,4511.9,4511.8,0.031]
[1758020087757,0.1104,4511.9,4511.6,0.0008]
[1758020087956,0.4226,4511.9,4511.6,0.0008]
[1758020088156,0.4226,4511.9,4511.6,0.4581]
[1758020088359,0.1104,4511.9,4511.8,0.031]
[1758020088686,0.1104,4511.9,4511.8,0.4573]
[1758020089053,1.3482,4511.9,4511.6,0.0008]
[1758020089384,0.432,4511.8,4511.6,0.0008]
[1758020089888,0.1104,4511.9,4511.6,0.0008]
[1758020090390,0.5661,4511.9,4511.6,0.0008]
[1758020090753,0.5661,4511.9,4511.6,0.492]
[1758020091388,0.1104,4511.9,4511.6,0.492]
[1758020091590,0.1104,4511.9,4511.7,0.4912]
[1758020092157,0.1104,4511.9,4511.8,0.4912]
[1758020092751,0.1104,4511.9,4511.6,0.0008]
[1758020093069,0.1104,4511.9,4511.8,0.4912]
[1758020093250,0.1104,4511.9,4511.6,0.492]
[1758020093454,0.1104,4511.9,4511.6,0.0008]
[1758020093781,0.1104,4511.9,4511.7,0.4912]
[1758020094104,0.1104,4511.9,4511.6,0.0008]
[1758020094459,0.1104,4511.9,4511.6,0.492]
[1758020094912,0.2991,4511.7,4511.6,0.0008]
[1758020095278,1.2133,4511.7,4511.6,0.0008]
[1758020095609,0.1104,4511.9,4511.6,0.0008]
[1758020095981,0.5661,4511.9,4511.6,0.0008]
[1758020096705,0.1104,4511.9,4511.6,0.0008]
[1758020096909,0.1104,4511.9,4511.7,0.4799]
[1758020097215,0.1104,4511.9,4511.8,0.4799]
[1758020097401,0.1104,4511.9,4511.6,0.4807]
[1758020097576,0.5847,4511.9,4511.6,0.4807]
[1758020097777,0.5847,4511.9,4511.6,0.0008]
[1758020098001,0.5723,4511.9,4511.6,0.0008]
[1758020098203,0.2928,4511.7,4511.6,0.0008]
[1758020098429,7.6593494,4511.7,4511.6,0.0008]
[1758020098591,8.5955494,4511.7,4511.6,0.0008]
[1758020098914,6.37908998,4511.7,4511.6,0.0008]
[1758020099613,5.91718998,4511.7,4511.6,0.0008]
[1758020099909,5.44288998,4511.7,4511.6,0.0008]
[1758020100315,0.1104,4511.9,4511.6,0.0008]
[1758020100623,0.1104,4511.9,4511.6,2.72816912]
[1758020100914,0.1104,4511.9,4511.7,0.4799]
[1758020101120,5.26048998,4511.9,4511.7,0.0008]
[1758020101305,1.229,4511.8,4511.7,0.0008]
[1758020102207,0.2928,4511.8,4511.7,0.0008]
[1758020102531,0.1104,4511.9,4511.7,2.7281474]
[1758020102733,0.1104,4511.9,4511.7,2.2676474]
[1758020103032,0.1104,4511.9,4511.8,0.4799]
[1758020103503,0.1104,4511.9,4511.8,2.7273103]
[1758020103701,0.1104,4511.9,4511.8,2.7467103]
[1758020103932,0.1104,4511.9,4511.8,2.7273103]
[1758020104115,0.1104,4511.9,4511.8,0.5109]
[1758020104933,0.4032,4511.9,4511.7,0.0008]
[1758020105132,0.9362,4511.8,4511.7,0.0008]
[1758020105534,1.229,4511.8,4511.7,0.0008]
[1758020105830,5.52429572,4511.8,4511.7,0.0008]
[1758020106035,7.74070602,4511.8,4511.7,0.0008]
[1758020107035,0.1096,4511.9,4511.7,0.0008]
[1758020107330,5.04999572,4511.8,4511.7,0.0008]
[1758020107498,4.58809572,4511.8,4511.7,0.0008]
[1758020108336,5.06239572,4511.8,4511.7,0.0008]
[1758020109237,8.00529572,4512.1,4511.7,0.5117]
[1758020109540,0.20739528,4512.0,4511.8,0.4799]
[1758020109744,3.0,4512.3,4511.9,0.5109]
[1758020109944,0.1104,4512.0,4511.9,0.5109]
[1758020110145,0.1104,4512.0,4511.9,2.24736117]
[1758020110846,0.1104,4512.0,4511.9,3.5660631]
[1758020111546,0.002,4512.4,4512.0,2.21629063]
[1758020111846,0.1124,4512.3,4512.0,2.69619063]
[1758020112046,0.1124,4512.3,4512.1,0.4799]
[1758020112353,0.1124,4512.3,4512.1,2.6961456]
[1758020112552,0.1124,4512.3,4512.2,0.4799]
[1758020116772,0.4052,4512.3,4511.9,0.0008]
[1758020116913,4.29529572,4512.0,4511.9,0.0008]
[1758020117332,4.29529572,4512.0,4511.9,0.4807]
[1758020120579,4.29529572,4512.0,4511.9,0.5117]
[1758020120778,0.1124,4512.3,4511.9,0.5117]
[1758020121079,0.1124,4512.3,4512.0,0.4635]
[1758020121440,4.40769572,4512.3,4512.0,0.4635]
[1758020121779,6.6238716,4512.3,4512.0,0.4635]
[1758020122089,4.40769572,4512.3,4512.0,0.0008]
[1758020122287,6.62386356,4512.3,4512.0,0.4643]
[1758020122588,5.34139572,4512.3,4512.0,0.0008]
[1758020122742,0.3027,4512.1,4512.0,0.0008]
[1758020123178,0.7776,4512.1,4512.0,0.0008]
[1758020123494,1.2364,4512.1,4512.0,0.0008]
[1758020123860,0.7776,4512.1,4512.0,0.0008]
[1758020124043,4.86649572,4512.3,4512.0,0.0008]
[1758020124445,0.3027,4512.1,4512.0,0.0008]
[1758020124863,0.7776,4512.1,4512.0,0.0008]
[1758020125500,0.3027,4512.1,4512.0,0.0008]
[1758020125674,4.40769572,4512.3,4512.0,0.0008]
[1758020126161,4.40769572,4512.3,4512.0,0.4643]
[1758020126800,7.0987639,4512.3,4512.0,0.4643]
[1758020127266,4.88259572,4512.3,4512.0,0.4643]
[1758020129093,7.09876173,4512.3,4512.0,0.4643]
[1758020129302,7.55756173,4512.3,4512.0,0.0008]
[1758020129966,5.34139572,4512.3,4512.0,0.0008]
[1758020130162,5.34059572,4512.3,4512.0,0.4643]
[1758020130594,5.34059572,4512.3,4512.0,0.0008]
[1758020130800,0.4749,4512.2,4512.0,0.0008]
[1758020131184,0.3027,4512.1,4512.0,0.0008]
[1758020131364,0.7776,4512.1,4512.0,0.0008]
[1758020131565,1.2364,4512.1,4512.0,0.0008]
[1758020133816,0.7776,4512.1,4512.0,0.0008]
[1758020134628,0.3027,4512.1,4512.0,0.0008]
[1758020134800,1.2364,4512.1,4512.0,0.0008]
[1758020135530,0.3027,4512.1,4512.0,0.0008]
[1758020135717,0.7776,4512.1,4512.0,0.0008]
[1758020136534,0.3027,4512.1,4512.0,0.0008]
[1758020137413,0.7776,4512.1,4512.0,0.0008]
[1758020138050,1.2364,4512.1,4512.0,0.0008]
[1758020138795,0.863216,4512.1,4512.0,0.0008]
[1758020139025,1.165916,4512.1,4512.0,0.0008]
[1758020139910,0.7615,4512.1,4512.0,0.0008]
[1758020140947,1.2364,4512.1,4512.0,0.0008]
[1758020142659,0.3027,4512.1,4512.0,0.0008]
[1758020144714,1.2364,4512.1,4512.0,0.0008]
[1758020146857,0.3027,4512.1,4512.0,0.0008]
[1758020147139,4.29649572,4512.3,4512.0,0.7713]
[1758020147380,4.77139572,4512.3,4512.0,0.4643]
[1758020147543,0.3027,4512.1,4512.0,0.0008]
[1758020148073,0.4749,4512.2,4512.0,0.0008]
[1758020148258,4.29649572,4512.3,4512.0,0.0008]
[1758020148458,5.23019572,4512.3,4512.0,0.0008]
[1758020148670,0.3027,4512.1,4512.0,0.0008]
[1758020149585,4.29649572,4512.3,4512.0,0.0008]
[1758020150082,5.23019572,4512.3,4512.0,0.0008]
[1758020150484,5.23019572,4512.3,4512.0,0.0018]
[1758020151382,4.29649572,4512.3,4512.0,0.0018]
[1758020151686,0.2947,4512.1,4512.0,0.0018]
[1758020152049,0.7249,4512.1,4512.0,0.0018]
[1758020152253,1.1966,4512.1,4512.0,0.0018]
[1758020155373,1.1958,4512.1,4512.0,0.0018]
[1758020157270,4.29649572,4512.3,4512.0,0.0018]
[1758020157779,4.29649572,4512.3,4512.0,0.4575]
[1758020157982,5.20509572,4512.3,4512.0,0.4575]
[1758020158286,5.20509572,4512.3,4512.0,0.0018]
[1758020160265,0.311,4512.1,4512.0,0.0018]
[1758020160707,1.2196,4512.1,4512.0,0.0018]
[1758020161770,1.2188,4512.1,4512.0,0.0018]
[1758020162712,0.3102,4512.1,4512.0,0.0018]
[1758020162913,0.7867,4512.1,4512.0,0.0018]
[1758020163113,1.885115,4512.1,4512.0,0.0018]
[1758020165118,0.976515,4512.1,4512.0,0.0018]
[1758020165276,0.666315,4512.1,4512.0,0.3085]
[1758020165477,0.666315,4512.1,4512.0,2.98051205]
[1758020165704,0.1116,4512.3,4512.0,4.26752041]
[1758020165881,0.1116,4512.3,4512.0,2.52481205]
[1758020166084,0.1116,4512.3,4512.1,0.4557]
[1758020166316,0.1116,4512.3,4512.1,0.4565]
[1758020166610,0.1116,4512.3,4512.2,0.3067]
[1758020166782,0.1116,4512.3,4512.2,0.7624]
[1758020167714,0.1116,4512.3,4512.2,0.4557]
[1758020167879,0.1116,4512.3,4512.1,0.0008]
[1758020168209,0.1116,4512.3,4512.1,0.4565]
[1758020168717,0.311,4512.2,4512.1,0.0008]
[1758020169211,3.43581382,4512.2,4512.1,0.0008]
[1758020169514,3.52465563,4512.2,4512.1,0.0008]
[1758020169698,7.4373049,4512.2,4512.1,0.0008]
[1758020170109,6.5287049,4512.2,4512.1,0.0008]
[1758020170294,7.4373049,4512.2,4512.1,0.0008]
[1758020170494,0.60749108,4512.2,4512.1,0.0008]
[1758020170696,0.08884181,4512.2,4512.1,0.0008]
[1758020171097,0.08884181,4512.2,4512.1,0.7632]
[1758020171436,0.08884181,4512.2,4512.1,1.1574]
[1758020171597,0.08884181,4512.2,4512.1,0.3075]
[1758020171802,0.1116,4512.3,4512.1,0.7632]
[1758020171997,0.1116,4512.3,4512.1,0.0008]
[1758020173409,0.1116,4512.3,4512.1,0.4565]
[1758020174811,0.1116,4512.3,4512.1,0.0008]
[1758020175217,0.1116,4512.3,4512.1,0.4565]
[1758020177139,0.1116,4512.3,4512.1,0.0008]
[1758020177331,0.1116,4512.3,4512.2,0.4557]
[1758020177636,0.1116,4512.3,4512.2,0.4565]
[1758020178018,0.1116,4512.3,4512.2,0.0008]
[1758020178214,0.8991,4512.3,4512.2,0.0008]
[1758020178417,0.1116,4512.3,4512.2,0.3075]
[1758020178642,0.1116,4512.3,4512.2,0.7632]
[1758020178809,0.0012,4512.3,4512.2,6.98246443]
[1758020179007,0.0012,4512.3,4512.2,7.37666443]
[1758020180528,0.0004,4512.3,4512.2,4.79195061]
[1758020180735,0.2906,4512.3,4512.2,4.00385061]
[1758020180927,0.2906,4512.3,4512.2,0.0008]
[1758020181157,1.2176,4512.3,4512.2,3.7048]
[1758020182232,3.5441647,4512.3,4512.2,0.0008]
[1758020182433,4.41802861,4512.3,4512.2,0.0008]
[1758020184144,4.41722861,4512.3,4512.2,0.0008]
[1758020184344,1.993515,4512.3,4512.2,0.0008]
[1758020184550,4.2096797,4512.3,4512.2,0.0008]
[1758020185376,4.41724404,4512.3,4512.2,0.0008]
[1758020185953,3.49024404,4512.3,4512.2,0.0008]
[1758020186148,4.41724404,4512.3,4512.2,0.0008]
[1758020187081,4.2096797,4512.3,4512.2,0.0008]
[1758020189079,7.74927857,4512.3,4512.2,0.0008]
[1758020189265,7.41722209,4512.3,4512.2,0.0008]
[1758020189785,7.62475356,4512.3,4512.2,0.0008]
[1758020191346,8.75447557,4512.3,4512.2,0.0008]
[1758020191553,8.22734676,4512.3,4512.2,0.0008]
[1758020192148,9.01964718,4512.3,4512.2,0.0008]
[1758020192478,8.22734676,4512.3,4512.2,0.0008]
[1758020192681,9.01964718,4512.3,4512.2,0.0008]
[1758020193251,8.22734676,4512.3,4512.2,0.0008]
[1758020194283,8.22711184,4512.3,4512.2,0.0008]
[1758020197374,10.56211184,4512.3,4512.2,0.0008]
[1758020197985,10.56199521,4512.3,4512.2,0.0008]
[1758020198284,11.15777839,4512.3,4512.2,0.0008]
[1758020200290,10.56199521,4512.3,4512.2,0.0008]
[1758020200657,10.56128302,4512.3,4512.2,0.0008]
[1758020201646,14.26528302,4512.3,4512.2,0.0008]
[1758020204574,2.21626293,4512.1,4512.0,0.001]
[1758020204775,9.45795586,4512.1,4512.0,0.001]
[1758020205087,11.15326625,4512.1,4512.0,0.001]
[1758020205255,11.24213489,4512.1,4512.0,0.001]
[1758020205454,2.21655768,4511.5,4511.1,0.011]
[1758020205656,3.0,4511.2,4510.7,0.001]
[1758020205890,7.65849477,4510.9,4510.7,0.001]
[1758020206193,11.57003716,4510.9,4510.7,0.001]
[1758020206361,12.04923716,4510.9,4510.7,0.001]
[1758020206786,8.34743716,4510.9,4510.7,0.001]
[1758020207181,11.7604189,4510.9,4510.7,0.001]
[1758020207781,14.7604189,4510.9,4510.7,0.001]
[1758020207982,14.55369477,4510.9,4510.7,0.001]
[1758020208719,10.84969477,4510.9,4510.7,0.001]
[1758020208898,14.55369477,4510.9,4510.7,0.001]
[1758020209107,14.55369477,4510.9,4510.8,0.4824]
[1758020209289,14.84389477,4510.9,4510.8,0.001]
[1758020209495,16.18429029,4510.9,4510.8,0.001]
[1758020209701,16.78458063,4510.9,4510.8,0.001]
[1758020210313,16.89676723,4510.9,4510.8,0.001]
[1758020212827,16.41756723,4510.9,4510.8,0.001]
[1758020213026,15.67956723,4510.9,4510.8,0.001]
[1758020213440,15.96576723,4510.9,4510.8,0.001]
[1758020215050,15.96576723,4510.9,4510.8,0.0018]
[1758020215259,15.75907156,4510.9,4510.8,0.0018]
[1758020215446,15.96576347,4510.9,4510.8,0.0018]
[1758020216243,16.55107156,4510.9,4510.8,0.0018]
[1758020216566,16.63376595,4510.9,4510.8,0.0018]
[1758020216724,16.75779295,4510.9,4510.8,0.0018]
[1758020218623,0.41341152,4510.9,4510.8,1.1985]
[1758020218937,0.1104,4511.3,4510.8,1.1985]
[1758020219135,0.1104,4511.3,4510.9,15.73584839]
[1758020219531,0.1104,4511.3,4511.2,0.3025]
[1758020219948,0.1104,4511.3,4511.2,1.1967]
[1758020220456,0.1104,4511.3,4511.2,3.41340508]
[1758020220660,0.1104,4511.3,4511.2,1.1967]
[1758020220855,0.1104,4511.3,4511.2,2.50857951]
[1758020223459,0.1104,4511.3,4511.2,1.1967]
[1758020224373,1.26414323,4512.8,4511.5,2.21650864]
[1758020224374,3.13986981,4512.7,4511.5,2.21650864]
[1758020224678,0.1104,4511.7,4511.3,3.11085595]
[1758020224878,0.1104,4511.7,4511.6,0.3025]
[1758020225177,0.1104,4511.7,4511.6,3.53509516]
[1758020225335,3.0,4512.2,4511.8,2.21640893]
[1758020225540,0.1104,4512.0,4511.9,0.8942]
[1758020225856,0.1104,4512.0,4511.6,0.12268661]
[1758020226058,0.002,4511.8,4511.6,2.33918864]
[1758020226438,0.002,4511.8,4511.7,15.6967]
[1758020227934,0.002,4511.8,4511.7,19.93840589]
[1758020229835,0.002,4511.8,4511.7,24.22971948]
[1758020230542,0.002,4511.8,4511.7,27.93371948]
[1758020230957,0.0012,4511.8,4511.7,27.93371948]
[1758020231851,0.0012,4511.8,4511.7,28.04411948]
[1758020234678,0.0012,4511.8,4511.7,28.13293564]
[1758020235746,0.0012,4511.8,4511.7,28.13373564]
[1758020236150,0.0012,4511.8,4511.7,23.44782205]
[1758020236361,0.0012,4511.8,4511.7,19.65500589]
[1758020236559,0.2969,4511.8,4511.7,14.5008]
[1758020236785,1.2208,4511.8,4511.7,18.2048]
[1758020238569,1.2208,4511.8,4511.7,0.0008]
[1758020241773,1.22,4511.8,4511.7,0.0008]
[1758020242172,3.4364103,4511.8,4511.7,0.0008]
[1758020243304,1.22,4511.8,4511.7,0.0008]
[1758020244212,0.2961,4511.8,4511.7,0.0008]
[1758020246015,0.0004,4511.8,4511.7,0.0008]
[1758020246793,0.2861,4511.8,4511.7,0.0008]
[1758020247204,1.2396,4511.8,4511.7,0.0008]
[1758020252010,3.4560103,4511.8,4511.7,0.0008]
[1758020252387,1.2396,4511.8,4511.7,0.0008]
[1758020252605,3.4560103,4511.8,4511.7,0.0008]
[1758020252810,1.2396,4511.8,4511.7,0.0008]
[1758020253131,0.2861,4511.8,4511.7,0.0008]
[1758020253324,1.2396,4511.8,4511.7,0.0008]
[1758020255836,3.4560103,4511.8,4511.7,0.0008]
[1758020256239,3.4552103,4511.8,4511.7,0.0008]
[1758020256944,1.2388,4511.8,4511.7,0.0008]
[1758020257146,3.4552103,4511.8,4511.7,0.0008]
[1758020258146,1.2388,4511.8,4511.7,0.0008]
[1758020259054,10.1582103,4511.8,4511.7,0.0008]
[1758020261080,10.36523562,4511.8,4511.7,0.0008]
[1758020261285,10.36522946,4511.8,4511.7,0.0008]
[1758020261443,11.17338986,4511.8,4511.7,0.0008]
[1758020262383,11.17538986,4511.8,4511.7,0.0008]
[1758020262871,11.96738986,4511.8,4511.7,0.0008]
[1758020263044,12.56219766,4511.8,4511.7,0.0008]
[1758020263713,12.65107915,4511.8,4511.7,0.0008]
[1758020263847,12.65027915,4511.8,4511.7,0.0008]
[1758020264048,12.65023119,4511.8,4511.7,0.0008]
[1758020265380,16.94554478,4511.8,4511.7,0.0008]
[1758020266377,16.35073698,4511.8,4511.7,0.0008]
[1758020266573,12.64373698,4511.8,4511.7,0.0008]
[1758020266883,16.35273698,4511.8,4511.7,0.0008]
[1758020270878,12.64373698,4511.8,4511.7,0.0008]
[1758020271277,16.35073698,4511.8,4511.7,0.0008]
[1758020272190,16.3504868,4511.8,4511.7,0.0008]
[1758020272386,12.6434868,4511.8,4511.7,0.0008]
[1758020272709,16.3504868,4511.8,4511.7,0.0008]
[1758020273999,16.3047868,4511.8,4511.7,0.0008]
[1758020276470,12.01347321,4511.8,4511.7,0.0008]
[1758020278796,6.32217321,4511.8,4511.7,0.0008]
[1758020278976,9.46134914,4511.8,4511.7,0.3067]
[1758020279179,6.23329172,4511.8,4511.7,0.7918]
[1758020279474,5.42517928,4511.8,4511.7,1.1876]
[1758020279677,4.13017928,4511.8,4511.7,1.1876]
[1758020279876,10.83617928,4511.8,4511.7,1.1876]
[1758020280181,7.83517928,4511.8,4511.7,1.1876]
[1758020280578,10.83517928,4511.8,4511.7,1.1876]
[1758020281274,10.83437928,4511.8,4511.7,1.1876]
[1758020281982,10.83437928,4511.8,4511.7,0.7918]
[1758020284525,10.83437928,4511.8,4511.7,0.0008]
[1758020284739,15.12569287,4511.8,4511.7,0.0008]
[1758020285921,10.83437928,4511.8,4511.7,0.7918]
[1758020287527,10.83445942,4511.8,4511.7,0.7918]
[1758020287890,10.83525942,4511.8,4511.7,0.7918]
[1758020288323,10.83325942,4511.8,4511.7,0.7918]
[1758020290236,7.13025942,4511.8,4511.7,0.7918]
[1758020290441,10.83325942,4511.8,4511.7,0.7918]
[1758020292430,11.13415942,4511.8,4511.7,0.0008]
[1758020292742,12.07405942,4511.8,4511.7,0.0008]
[1758020293133,12.28114592,4511.8,4511.7,0.0008]
[1758020293438,12.88250487,4511.8,4511.7,0.0008]
[1758020295712,13.67450487,4511.8,4511.7,0.0008]
[1758020296241,14.26931267,4511.8,4511.7,0.0008]
[1758020296646,13.67450487,4511.8,4511.7,0.0008]
[1758020298241,13.67455921,4511.8,4511.7,0.0008]
[1758020301149,13.13631765,4511.8,4511.7,0.0008]
[1758020301744,13.6742331,4511.8,4511.7,0.0008]
[1758020302078,13.3427159,4511.8,4511.7,0.0008]
[1758020302387,13.13551765,4511.8,4511.7,0.0008]
[1758020305377,13.92844635,4511.8,4511.7,0.0008]
[1758020305704,14.13565578,4511.8,4511.7,0.0008]
[1758020306078,14.34886181,4511.8,4511.7,0.0008]
[1758020306404,14.55607116,4511.8,4511.7,0.0008]
[1758020306566,14.55527116,4511.8,4511.7,0.0008]
[1758020308878,14.55521752,4511.8,4511.7,0.0008]
[1758020313718,14.55502035,4511.8,4511.7,0.0008]
[1758020314511,6.00785595,4511.3,4511.2,1e-08]
[1758020314789,16.19876572,4511.3,4511.2,1e-08]
[1758020315021,17.93367307,4511.3,4511.2,1e-08]
[1758020316221,17.72635222,4511.3,4511.2,1e-08]
[1758020316427,17.93319327,4511.3,4511.2,1e-08]
[1758020316623,17.93318918,4511.3,4511.2,1e-08]
[1758020319522,17.13847334,4511.3,4511.2,1e-08]
[1758020319824,17.13840141,4511.3,4511.2,1e-08]
[1758020320007,17.22729415,4511.3,4511.2,1e-08]
[1758020321240,12.55719415,4511.3,4511.2,1e-08]
[1758020321538,12.26549415,4511.3,4511.2,0.46810001]
[1758020321741,15.96949415,4511.3,4511.2,0.77900001]
[1758020321921,16.76424508,4511.3,4511.2,0.77900001]
[1758020322321,16.76424508,4511.3,4511.2,0.31090001]
[1758020322520,16.76424508,4511.3,4511.2,0.46810001]
[1758020323433,16.26119415,4511.3,4511.2,1e-08]
[1758020323636,0.792,4511.1,4510.8,0.001]
[1758020323810,8.94570043,4510.9,4510.8,0.001]
[1758020324023,14.17429797,4510.9,4510.8,0.001]
[1758020324222,6.00890165,4510.8,4510.7,0.001]
[1758020324424,11.19914668,4510.8,4510.7,0.001]
[1758020324734,11.19914668,4510.8,4510.7,0.0018]
[1758020324735,12.78084941,4510.8,4510.7,0.0018]
[1758020325309,12.78084941,4510.8,4510.2,1e-08]
[1758020325310,3.00914741,4510.3,4510.2,1e-08]
[1758020325509,15.99229287,4510.3,4510.2,1e-08]
[1758020325711,17.25009287,4510.3,4510.2,1e-08]
[1758020326221,15.99229287,4510.3,4510.2,1e-08]
[1758020326416,15.99229287,4510.3,4510.2,0.77900001]
[1758020326821,16.10498585,4510.3,4510.2,0.77900001]
[1758020327544,16.10498585,4510.3,4510.2,0.46810001]
[1758020327713,15.99229287,4510.3,4510.2,0.46810001]
[1758020328228,15.99229287,4510.3,4510.2,0.77900001]
[1758020328448,16.58814102,4510.3,4510.2,0.77900001]
[1758020328759,16.87984102,4510.3,4510.2,1e-08]
[1758020328926,17.25009287,4510.3,4510.2,1e-08]
[1758020330230,16.28399287,4510.3,4510.2,1e-08]
[1758020330523,15.99229287,4510.3,4510.2,1e-08]
[1758020330723,16.29949287,4510.3,4510.2,1e-08]
[1758020330951,16.30149287,4510.3,4510.2,1e-08]
[1758020331162,16.30152414,4510.3,4510.2,1e-08]
[1758020331344,16.3015196,4510.3,4510.2,1e-08]
[1758020331862,3.23341917,4510.3,4510.2,1.19660001]
[1758020332164,4.11969244,4510.3,4510.2,1.19660001]
[1758020332457,3.91284622,4510.3,4510.2,1.19660001]
[1758020332839,6.91284622,4510.3,4510.2,1.19660001]
[1758020333037,0.20884622,4510.3,4510.2,1.19660001]
[1758020333363,3.8164,4510.3,4510.2,1.31736001]
[1758020334086,0.1124,4510.3,4510.2,1.31736001]
[1758020334241,6.8164,4510.3,4510.2,1.31736001]
[1758020334630,3.002,4510.3,4510.2,3.53455658]
[1758020334831,0.002,4510.3,4510.2,3.53535658]
[1758020335058,0.002,4510.3,4510.2,1.31816001]
[1758020335681,0.002,4510.3,4510.2,3.53535658]
[1758020335987,0.002,4510.3,4510.2,18.03535658]
[1758020339599,0.002,4510.3,4510.2,15.81816001]
[1758020339800,0.002,4510.3,4510.2,18.03535658]
[1758020340169,0.002,4510.3,4510.2,15.81816001]
[1758020340674,0.002,4510.3,4510.2,18.03535658]
[1758020341594,0.002,4510.3,4510.2,15.30160001]
[1758020341964,0.002,4510.3,4510.2,0.80160001]
[1758020342166,0.002,4510.3,4510.2,1.19740001]
[1758020343492,0.002,4510.3,4510.2,3.41459658]
[1758020344003,0.002,4510.3,4510.2,1.19740001]
[1758020345274,0.002,4510.3,4510.2,3.75716491]
[1758020345709,0.002,4510.3,4510.2,1.53996834]
[1758020345917,0.002,4510.3,4510.2,1.19740001]